Workbook

Sheet Sheet1
A4: INSTRUCTIONS: Use this form when a single information collection document involves multiple reporting and recordkeeping requirements. The totals of the figures in cols. should be entered in item 13 of OMB-83-1: cols. (D) &/or (I) = 13a (respondent is only counted once); cols. F & I = 13b; cols. H & K = 13c. (F)Total/(D)Total = (E)Average (H)Total/(F)Total = (G)Average (K)Total/(I)Total = (J)Average NOTE: The columns will calculate automatically. If Col. E's response is something other than annually, i.e., 1/6 years, list as "1/6" & decimal will display. | I4: TITLE OF INFORMATION COLLECTION DOCUMENT | N4: OMB NO.
I6: Regulations for Voluntary Grading, Certification, and Standards—7 CFR Parts 54, 56, 62, and 70. | N6: 0581-0128
N9: DATE PREPARED
N11: 2017-05-17
A13: IDENTIFICATION OF REPORTING OR RECORDKEEPING REQUIREMENT | H13: ANNUAL BURDEN
H15: REPORTS | M15: RECORDS
O17: TOTAL
G18: FORMS NO (S) | H18: NO. OF | I18: NO OF | J18: TOTAL ANNUAL | K18: HOURS | L18: TOTAL | M18: NO. OF | N18: ANNUAL | O18: RECORD-
A19: SECTION OF | B19: DESCRIPTION | G19: (If "none" | H19: RESPONDENTS | I19: RESPONSES | J19: RESPONSES | K19: PER | L19: HOURS | M19: RECORD- | N19: HOURS PER | O19: KEEPING HOURS
A20: REGS. | G20: so state) | I20: PER | J20: (Col. D x E) | K20: RESPONSE | L20: (Col. F x G) | M20: KEEPERS | N20: RECORD- | O20: (Col. I x J)
I21: RESPONDENT | N21: KEEPER
A22: (A) | B22: (B) | G22: (C) | H22: (D) | I22: (E) | J22: (F) | K22: (G) | L22: (H) | M22: (I) | N22: (J) | O22: (K)
A23: 7 CFR Part 54.4 | B23: Request for Eartags (Beef Carcass Data Service) | G23: None | H23: 0 | I23: 1.0000 | J23: =H23*I23 -> 0.00 | K23: 0.1000 | L23: =J23*K23 -> 0.00 | O23: =SUM(M23*N23) -> 0.00
A24: 54.5 | B24: Submission of Brand Imprints | G24: None | H24: 0 | I24: 1.0000 | J24: 0.00 | K24: 0.3000 | L24: 0.00 | O24: 0.00
A25: 54.61 | B25: Application for Service - Meat Grading or Certification Service (noncommitment) (Burden reflected under 70.31(b)) | G25: LPS-109 (Previously PY-32 & LS-313; CoW 3/16/15) | H25: 0 | I25: 0.0000 | J25: 0.00 | K25: 0.0000 | L25: 0.00 | O25: 0.00
A26: 54.6(c)2 | B26: Application for Commitment Grading or Certification Service (Burden reflected under 56.18) | G26: LPS-110 (Previously PY-100 & LS-315; CoW 3/16/15) | H26: 0 | I26: 0.0000 | J26: 0.00 | K26: 0.0000 | L26: 0.00 | O26: 0.00
A27: 54.8 | B27: Request for Service - Grading or Certification | G27: None | H27: 65 | I27: 26.0000 | J27: 1,690.00 | K27: 0.0166 | L27: 28.05 | O27: 0.00
A28: 54.9 | B28: Withdrawal of Application or Request for Service - Grading and Certification | G28: None | H28: 10 | I28: 1.0000 | J28: 10.00 | K28: 0.1500 | L28: 1.50 | O28: 0.00
A29: 54.13(b) | B29: Exemption Request | G29: None | H29: 5 | I29: 1.0000 | J29: =H29*I29 -> 5.00 | K29: 1.0000 | L29: =J29*K29 -> 5.00 | O29: 0.00
A30: 54.15 | B30: Advance Information Concerning Service Rendered | G30: None | H30: 175 | I30: 1.0000 | J30: =H30*I30 -> 175.00 | K30: 0.0800 | L30: =J30*K30 -> 14.00 | O30: 0.00
A31: 54.2 | B31: Request for Appeal Service | G31: None | H31: 0 | I31: 1.0000 | J31: 0.00 | K31: 0.2500 | L31: 0.00 | O31: 0.00
A32: 54.21 | B32: Withdrawal of Request for Appeal Service | G32: None | H32: 0 | I32: 1.0000 | J32: 0.00 | K32: 0.1600 | L32: 0.00 | O32: 0.00
B33: SUBTOTAL | J33: =SUM(J23:J32) -> 1,880.00 | L33: =SUM(L23:L32) -> 48.55 | O33: =SUM(O23:O32) -> 0.00
B34: TOTAL OF ALL PAGES | J34: =J33+J66+J100+J132+J164+J197+J227+J258+J287+J316+J345 -> 54,560.00 | L34: =L33+L66+L100+L132+L164+L197+L227+L258+L287+L316+L345 -> 10,784.63 | O34: =SUM(O23:O34) -> 0.00
A35: TOTAL - COLUMNS "F" AND "I" = OMB 831, 13 b; COLUMNS "H" AND "K" = OMB 831, 13c | J35: =SUM(J34+M34) -> 54,560.00 | L35: =L34 -> 10,784.63
A39: INSTRUCTIONS: Use this form when a single information collection document involves multiple reporting and recordkeeping requirements. The totals of the figures in cols. should be entered in item 13 of OMB-83-1: cols. (D) &/or (I) = 13a (respondent is only counted once); cols. F & I = 13b; cols. H & K = 13c. (F)Total/(D)Total = (E)Average (H)Total/(F)Total = (G)Average (K)Total/(I)Total = (J)Average NOTE: The columns will calculate automatically. If Col. E's response is something other than annually, i.e., 1/6 years, list as "1/6" & decimal will display. | I39: TITLE OF INFORMATION COLLECTION DOCUMENT | N39: OMB NO.
I41: Regulations for Voluntary Grading, Certification, and Standards—7 CFR Parts 54, 56, 62, and 70. | N41: 0581-0128
N44: DATE PREPARED
N46: =$N$11 -> 2017-05-17
A48: IDENTIFICATION OF REPORTING OR RECORDKEEPING REQUIREMENT | H48: ANNUAL BURDEN
H50: REPORTS | M50: RECORDS
O52: TOTAL
G53: FORMS NO (S) | H53: NO. OF | I53: NO OF | J53: TOTAL ANNUAL | K53: HOURS | L53: TOTAL | M53: NO. OF | N53: ANNUAL | O53: RECORD-
A54: SECTION OF | B54: DESCRIPTION | G54: (If "none" | H54: RESPONDENTS | I54: RESPONSES | J54: RESPONSES | K54: PER | L54: HOURS | M54: RECORD- | N54: HOURS PER | O54: KEEPING HOURS
A55: REGS. | G55: so state) | I55: PER | J55: (Col. D x E) | K55: RESPONSE | L55: (Col. F x G) | M55: KEEPERS | N55: RECORD- | O55: (Col. I x J)
I56: RESPONDENT | N56: KEEPER
A57: (A) | B57: (B) | G57: (C) | H57: (D) | I57: (E) | J57: (F) | K57: (G) | L57: (H) | M57: (I) | N57: (J) | O57: (K)
A58: 7 CFR Part 56.3 | B58: Request experimentation or alternate procedures | G58: None | H58: 4 | I58: 1.0000 | J58: =SUM(H58*I58) -> 4.00 | K58: 1.0000 | L58: =SUM(J58*K58) -> 4.00 | O58: =SUM(M58*N58) -> 0.00
A59: 56.4 | B59: Application for specification approval - (Burden reflected under 70.10) | G59: None - Removed PY-33 | J59: =SUM(H59*I59) -> 0.00 | L59: =SUM(J59*K59) -> 0.00 | O59: =SUM(M59*N59) -> 0.00
A60: 56.10(a) | B60: Application for License (State employee's application for grader's or inspector's license) | G60: LPS-157 | H60: 30 | I60: 1.0000 | J60: 30.00 | K60: 0.5000 | L60: 15.00 | O60: 0.00
A61: 56.10(c.) (citation correction: previously 56.11) | B61: Results of check gradings performed by company quality assurance inspectors in plants with resident service (No information collection required for authorized limited graders.) | G61: None | H61: 5 | I61: 260.0000 | J61: 1,300.00 | K61: 0.2000 | L61: 260.00 | O61: 0.00
A62: 56.12 | B62: State employee appeals suspension of grader's license | G62: None | H62: 1 | I62: 1.0000 | J62: =SUM(H62*I62) -> 1.00 | K62: 1.0000 | L62: =SUM(J62*K62) -> 1.00 | O62: =SUM(M62*N62) -> 0.00
A63: 56.17(b) | B63: Approval of space & equipment (plants with resident service surveyed by USDA) (Survey verbally discussed w/plant mgmt. Explained in A. 2. of support statement. Plants surveyed for intitial approval & when remodeled or new equipment is installed.) | G63: None | H63: 20 | I63: 1.0000 | J63: =SUM(H63*I63) -> 20.00 | K63: 0.5000 | L63: =SUM(J63*K63) -> 10.00 | O63: =SUM(M63*N63) -> 0.00
A64: 56.18 | B64: Work Schedule Request, Voluntary Grading Service (schedule for continuous resident service) (Includes applicable burden for 54.6(c)2 and 70.18) | G64: LPS-110 (Previously PY-100 & LS-315; CoW 3/16/15) | H64: 130 | I64: 1.0000 | J64: =SUM(H64*I64) -> 130.00 | K64: 0.2500 | L64: =SUM(J64*K64) -> 32.50 | O64: =SUM(M64*N64) -> 0.00
A65: 56.18 | B65: Verbally notify grader in advance of change in the hours of scheduled continuous resident grading service | G65: None | H65: 18 | I65: 2.0000 | J65: =SUM(H65*I65) -> 36.00 | K65: 0.0800 | L65: =SUM(J65*K65) -> 2.88 | O65: =SUM(M65*N65) -> 0.00
B66: SUBTOTAL | J66: =SUM(J58:J65) -> 1,521.00 | L66: =SUM(L58:L65) -> 325.38 | O66: =SUM(O58:O65) -> 0.00
A72: INSTRUCTIONS: Use this form when a single information collection document involves multiple reporting and recordkeeping requirements. The totals of the figures in cols. should be entered in item 13 of OMB-83-1: cols. (D) &/or (I) = 13a (respondent is only counted once); cols. F & I = 13b; cols. H & K = 13c. (F)Total/(D)Total = (E)Average (H)Total/(F)Total = (G)Average (K)Total/(I)Total = (J)Average NOTE: The columns will calculate automatically. If Col. E's response is something other than annually, i.e., 1/6 years, list as "1/6" & decimal will display. | I72: TITLE OF INFORMATION COLLECTION DOCUMENT | N72: OMB NO.
I74: Regulations for Voluntary Grading, Certification, and Standards—7 CFR Parts 54, 56, 62, and 70. | N74: 0581-0128
N77: DATE PREPARED
N79: =$N$11 -> 2017-05-17
A81: IDENTIFICATION OF REPORTING OR RECORDKEEPING REQUIREMENT | H81: ANNUAL BURDEN
H83: REPORTS | M83: RECORDS
O85: TOTAL
G86: FORMS NO (S) | H86: NO. OF | I86: NO OF | J86: TOTAL ANNUAL | K86: HOURS | L86: TOTAL | M86: NO. OF | N86: ANNUAL | O86: RECORD-
A87: SECTION OF | B87: DESCRIPTION | G87: (If "none" | H87: RESPONDENTS | I87: RESPONSES | J87: RESPONSES | K87: PER | L87: HOURS | M87: RECORD- | N87: HOURS PER | O87: KEEPING HOURS
A88: REGS. | G88: so state) | I88: PER | J88: (Col. D x E) | K88: RESPONSE | L88: (Col. F x G) | M88: KEEPERS | N88: RECORD- | O88: (Col. I x J)
I89: RESPONDENT | N89: KEEPER
A90: (A) | B90: (B) | G90: (C) | H90: (D) | I90: (E) | J90: (F) | K90: (G) | L90: (H) | M90: (I) | N90: (J) | O90: (K)
A91: 56.21(a) | B91: Request service on lot-fee basis-may be oral or in writing (Includes applicable burden for 56.23 and 56.58. Most all requests are telephone or direct verbal requests.) | G91: None | H91: 175 | I91: 20.0000 | J91: =SUM(H91*I91) -> 3,500.00 | K91: 0.1600 | L91: =SUM(J91*K91) -> 560.00 | O91: =SUM(M91*N91) -> 0.00
A92: 56.21(a) | B92: Written request to establish resident grading service on as-needed basis | G92: None | H92: 8 | I92: 1.0000 | J92: =SUM(H92*I92) -> 8.00 | K92: 0.2500 | L92: =SUM(J92*K92) -> 2.00 | O92: =SUM(M92*N92) -> 0.00
A93: 56.21(a) | B93: Verbally request service of a grader to grade product (service on as-needed basis) | G93: None | H93: 39 | I93: 52.0000 | J93: 2,028.00 | K93: 0.1600 | L93: 324.48 | O93: 0.00
A94: 56.21(a) | B94: Written request to cancel resident grading service on as-needed basis | G94: None | H94: 20 | I94: 1.0000 | J94: 20.00 | K94: 0.2500 | L94: 5.00 | O94: 0.00
A95: 56.21(b) | B95: Application for continuous resident grading service (Burden reflected under 70.31(b)) | G95: LPS-109 (Previously PY-32 & LS-313; CoW 3/16/15) | J95: 0.00 | L95: 0.00 | O95: 0.00
A96: 56.21(c) | B96: Application for temporary grading service on a fee basis (Burden reflected under 70.31(b)) | G96: LPS-109 (Previously PY-32 & LS-313; CoW 3/16/15) | J96: 0.00 | L96: 0.00 | O96: 0.00
A97: 56.23 | B97: Information provided on product and premises when product is graded or sampled on lot-fee basis (Burden reflected under 56.21(a) (lot-fee basis). | G97: None | J97: 0.00 | L97: 0.00 | O97: 0.00
A98: 56.23 | B98: Volume of Shell Eggs graded per billing period in plants with resident service on as-needed basis | G98: LPS-240S | H98: 47 | I98: 7.0000 | J98: =SUM(H98*I98) -> 329.00 | K98: 0.7500 | L98: =SUM(J98*K98) -> 246.75 | O98: =SUM(M98*N98) -> 0.00
A99: 56.23 | B99: Volume of Poultry/Rabbits graded per billing period in plants with resident service on as-needed basis (BURDEN MOVED TO 70.61) | G99: LPS-240P | L99: 0.00 | O99: 0.00
B100: SUBTOTAL | J100: =SUM(J91:J99) -> 5,885.00 | L100: =SUM(L91:L99) -> 1,138.23 | O100: =SUM(O91:O99) -> 0.00
A106: INSTRUCTIONS: Use this form when a single information collection document involves multiple reporting and recordkeeping requirements. The totals of the figures in cols. should be entered in item 13 of OMB-83-1: cols. (D) &/or (I) = 13a (respondent is only counted once); cols. F & I = 13b; cols. H & K = 13c. (F)Total/(D)Total = (E)Average (H)Total/(F)Total = (G)Average (K)Total/(I)Total = (J)Average NOTE: The columns will calculate automatically. If Col. E's response is something other than annually, i.e., 1/6 years, list as "1/6" & decimal will display. | I106: TITLE OF INFORMATION COLLECTION DOCUMENT | N106: OMB NO.
I108: Regulations for Voluntary Grading, Certification, and Standards—7 CFR Parts 54, 56, 62, and 70. | N108: 0581-0128
N111: DATE PREPARED
N113: =$N$11 -> 2017-05-17
A115: IDENTIFICATION OF REPORTING OR RECORDKEEPING REQUIREMENT | H115: ANNUAL BURDEN
H117: REPORTS | M117: RECORDS
O119: TOTAL
G120: FORMS NO (S) | H120: NO. OF | I120: NO OF | J120: TOTAL ANNUAL | K120: HOURS | L120: TOTAL | M120: NO. OF | N120: ANNUAL | O120: RECORD-
A121: SECTION OF | B121: DESCRIPTION | G121: (If "none" | H121: RESPONDENTS | I121: RESPONSES | J121: RESPONSES | K121: PER | L121: HOURS | M121: RECORD- | N121: HOURS PER | O121: KEEPING HOURS
A122: REGS. | G122: so state) | I122: PER | J122: (Col. D x E) | K122: RESPONSE | L122: (Col. F x G) | M122: KEEPERS | N122: RECORD- | O122: (Col. I x J)
I123: RESPONDENT | N123: KEEPER
A124: (A) | B124: (B) | G124: (C) | H124: (D) | I124: (E) | J124: (F) | K124: (G) | L124: (H) | M124: (I) | N124: (J) | O124: (K)
A125: 56.24 | B125: Submit petition for reconsideration of rejected application for resident service | G125: None | H125: 1 | I125: 1.0000 | J125: =SUM(H125*I125) -> 1.00 | K125: 2.0000 | L125: =SUM(J125*K125) -> 2.00 | O125: =SUM(M125*N125) -> 0.00
A126: 56.25 | B126: Withdraw application for continuous resident grading service (Negligible) | G126: None | H126: 1 | I126: 1.0000 | J126: =SUM(H126*I126) -> 1.00 | K126: 0.2500 | L126: =SUM(J126*K126) -> 0.25 | O126: =SUM(M126*N126) -> 0.00
A127: 56.26 | B127: Proof of applicant's authority | G127: None | H127: 1 | I127: 1.0000 | J127: =SUM(H127*I127) -> 1.00 | K127: 0.5000 | L127: =SUM(J127*K127) -> 0.50 | O127: =SUM(M127*N127) -> 0.00
A128: 56.30 | B128: Grader's report of violation or noncompliances (LPS reg 59.240-Burden is currently approved under OMB #0581-0113.) | G128: LPS-518-1 | J128: =SUM(H128*I128) -> 0.00 | L128: =SUM(J128*K128) -> 0.00 | O128: =SUM(M128*N128) -> 0.00
A129: 56.31(a) | B129: Request hearing on debarment, suspension, or withdrawal or resident service | G129: None | H129: 1 | I129: 1.0000 | J129: 1.00 | K129: 3.0000 | L129: 3.00 | O129: 0.00
A130: 56.35(b) | B130: Submit labels with USDA grademark for approval (Reflects burden to develop, assemble & provide labeling information, and to present the labeling information.) | G130: None | H130: 40 | I130: 35.0000 | J130: =SUM(H130*I130) -> 1,400.00 | K130: 1.0000 | L130: =SUM(J130*K130) -> 1,400.00 | O130: =SUM(M130*N130) -> 0.00
A131: 56.35(c) | B131: Submit nutritional labeling for approval (Reflects burden - due to FDA & USDA requirements - to assemble and provide the nutritional information, & to present the nutritional labeling.) | G131: None | H131: 10 | I131: 1.0000 | J131: =SUM(H131*I131) -> 10.00 | K131: 1.0000 | L131: =SUM(J131*K131) -> 10.00 | O131: =SUM(M131*N131) -> 0.00
B132: SUBTOTAL | J132: =SUM(J125:J131) -> 1,414.00 | L132: =SUM(L125:L131) -> 1,415.75 | O132: =SUM(O125:O131) -> 0.00
A136: INSTRUCTIONS: Use this form when a single information collection document involves multiple reporting and recordkeeping requirements. The totals of the figures in cols. should be entered in item 13 of OMB-83-1: cols. (D) &/or (I) = 13a (respondent is only counted once); cols. F & I = 13b; cols. H & K = 13c. (F)Total/(D)Total = (E)Average (H)Total/(F)Total = (G)Average (K)Total/(I)Total = (J)Average NOTE: The columns will calculate automatically. If Col. E's response is something other than annually, i.e., 1/6 years, list as "1/6" & decimal will display. | I136: TITLE OF INFORMATION COLLECTION DOCUMENT | N136: OMB NO.
I138: Regulations for Voluntary Grading, Certification, and Standards—7 CFR Parts 54, 56, 62, and 70. | N138: 0581-0128
N141: DATE PREPARED
N143: =$N$11 -> 2017-05-17
A145: IDENTIFICATION OF REPORTING OR RECORDKEEPING REQUIREMENT | H145: ANNUAL BURDEN
H147: REPORTS | M147: RECORDS
O149: TOTAL
G150: FORMS NO (S) | H150: NO. OF | I150: NO OF | J150: TOTAL ANNUAL | K150: HOURS | L150: TOTAL | M150: NO. OF | N150: ANNUAL | O150: RECORD-
A151: SECTION OF | B151: DESCRIPTION | G151: (If "none" | H151: RESPONDENTS | I151: RESPONSES | J151: RESPONSES | K151: PER | L151: HOURS | M151: RECORD- | N151: HOURS PER | O151: KEEPING HOURS
A152: REGS. | G152: so state) | I152: PER | J152: (Col. D x E) | K152: RESPONSE | L152: (Col. F x G) | M152: KEEPERS | N152: RECORD- | O152: (Col. I x J)
I153: RESPONDENT | N153: KEEPER
A154: (A) | B154: (B) | G154: (C) | H154: (D) | I154: (E) | J154: (F) | K154: (G) | L154: (H) | M154: (I) | N154: (J) | O154: (K)
A155: 56.37 | B155: Request approval of alternate lot numbering system | G155: None | H155: 2 | I155: 1.0000 | J155: =SUM(H155*I155) -> 2.00 | K155: 0.5000 | L155: =SUM(J155*K155) -> 1.00 | O155: =SUM(M155*N155) -> 0.00
A156: 56.52(a)(1) | B156: New application for continuous resident service submitted because of change in name, ownership or location (Burden is reflected under Reg. 70-31(b)) | G156: LPS-109 (Previously PY-32 & LS-313; CoW 3/16/15) | J156: =SUM(H156*I156) -> 0.00 | L156: =SUM(J156*K156) -> 0.00 | O156: =SUM(M156*N156) -> 0.00
A157: 56.52(a)(4) | B157: Volume of Shell Egg handled per billing period in plants with continuous resident service. | G157: LPS-240S | H157: 176 | I157: 12.0000 | J157: =SUM(H157*I157) -> 2,112.00 | K157: 0.7500 | L157: =SUM(J157*K157) -> 1,584.00 | O157: =SUM(M157*N157) -> 0.00
A158: 56.52(a)(4) | B158: Volume of Poultry/Rabbits handled per billing period in plants with continuous resident service. (BURDEN MOVED TO 70.77(a)(4)) | G158: LPS-240P | H158: 0 | I158: 0.0000 | J158: =SUM(H158*I158) -> 0.00 | K158: 0.7500 | L158: =SUM(J158*K158) -> 0.00 | O158: =SUM(M158*N158) -> 0.00
A159: 56.52(b)(1) | B159: Company designates, in writing, plant employee required and authorized to furnish information to resident grader | G159: None | H159: 70 | I159: 1.0000 | J159: =SUM(H159*I159) -> 70.00 | K159: 0.2000 | L159: =SUM(J159*K159) -> 14.00 | O159: =SUM(M159*N159) -> 0.00
A160: 56.52(b)(3)(ii) | B160: Applicant's written notice to terminate continuous resident service | G160: None | H160: 16 | I160: 1.0000 | J160: =SUM(H160*I160) -> 16.00 | K160: 0.2500 | L160: =SUM(J160*K160) -> 4.00 | O160: =SUM(M160*N160) -> 0.00
A161: 56.54(b)(1) | B161: Company designates, in writing, plant employee required and authorized to furnish information to grader (Negligible) | G161: None | H161: 1 | I161: 1.0000 | J161: =SUM(H161*I161) -> 1.00 | K161: 0.2000 | L161: =SUM(J161*K161) -> 0.20 | O161: =SUM(M161*N161) -> 0.00
A162: 56.54(b)(3)(ii) | B162: Applicants written notice to terminate service (Negligible) | G162: None | H162: 1 | I162: 1.0000 | J162: =SUM(H162*I162) -> 1.00 | K162: 0.2500 | L162: =SUM(J162*K162) -> 0.25 | O162: =SUM(M162*N162) -> 0.00
A163: 56.56(a) and 56.57 | B163: Request for USDA grading certificates (Direct verbal request to resident grader. Includes applicable burden for 56.58.) | G163: None | H163: 176 | I163: 60.0000 | J163: =SUM(H163*I163) -> 10,560.00 | K163: 0.0500 | L163: =SUM(J163*K163) -> 528.00 | O163: =SUM(M163*N163) -> 0.00
B164: SUBTOTAL | J164: =SUM(J155:J163) -> 12,762.00 | L164: =SUM(L155:L163) -> 2,131.45 | O164: =SUM(O155:O163) -> 0.00
A168: INSTRUCTIONS: Use this form when a single information collection document involves multiple reporting and recordkeeping requirements. The totals of the figures in cols. should be entered in item 13 of OMB-83-1: cols. (D) &/or (I) = 13a (respondent is only counted once); cols. F & I = 13b; cols. H & K = 13c. (F)Total/(D)Total = (E)Average (H)Total/(F)Total = (G)Average (K)Total/(I)Total = (J)Average NOTE: The columns will calculate automatically. If Col. E's response is something other than annually, i.e., 1/6 years, list as "1/6" & decimal will display. | I168: TITLE OF INFORMATION COLLECTION DOCUMENT | N168: OMB NO.
I170: Regulations for Voluntary Grading, Certification, and Standards—7 CFR Parts 54, 56, 62, and 70. | N170: 0581-0128
N173: DATE PREPARED
N175: =$N$11 -> 2017-05-17
A177: IDENTIFICATION OF REPORTING OR RECORDKEEPING REQUIREMENT | H177: ANNUAL BURDEN
H179: REPORTS | M179: RECORDS
O181: TOTAL
G182: FORMS NO (S) | H182: NO. OF | I182: NO OF | J182: TOTAL ANNUAL | K182: HOURS | L182: TOTAL | M182: NO. OF | N182: ANNUAL | O182: RECORD-
A183: SECTION OF | B183: DESCRIPTION | G183: (If "none" | H183: RESPONDENTS | I183: RESPONSES | J183: RESPONSES | K183: PER | L183: HOURS | M183: RECORD- | N183: HOURS PER | O183: KEEPING HOURS
A184: REGS. | G184: so state) | I184: PER | J184: (Col. D x E) | K184: RESPONSE | L184: (Col. F x G) | M184: KEEPERS | N184: RECORD- | O184: (Col. I x J)
I185: RESPONDENT | N185: KEEPER
A186: (A) | B186: (B) | G186: (C) | H186: (D) | I186: (E) | J186: (F) | K186: (G) | L186: (H) | M186: (I) | N186: (J) | O186: (K)
A187: 56.58 | B187: Request USDA to telephone information from USDA grading certificate in advance (Burden reflected under 56.21(a) (lot-fee basis) and 56.56(a).) | G187: None | J187: =SUM(H187*I187) -> 0.00 | L187: =SUM(J187*K187) -> 0.00 | O187: =SUM(M187*N187) -> 0.00
A188: 56.60 and 56.62 | B188: Request for an appeal grading - may be oral or in writing (Most all are direct verbal or telephone request.) | G188: None | H188: 2 | I188: 1.0000 | J188: =SUM(H188*I188) -> 2.00 | K188: 0.1600 | L188: =SUM(J188*K188) -> 0.32 | O188: =SUM(M188*N188) -> 0.00
A189: 56.76(f)(6) | B189: Submit certificate or potable water supply (Primarily a reporting burden as explained in A. 4. of supporting statement.) | G189: None | H189: 176 | I189: 1.2500 | J189: =SUM(H189*I189) -> 220.00 | K189: 0.5000 | L189: =SUM(J189*K189) -> 110.00 | O189: =SUM(M189*N189) -> 0.00
A190: 56.76(h) (citation correction: previously 56.76(g)) | B190: Request approval of chemical compounds (including inks & oils used on products) (Reflects burden for food grade inks and mineral oils.) | G190: None | H190: 8 | I190: 1.0000 | J190: =SUM(H190*I190) -> 8.00 | K190: 1.0000 | L190: =SUM(J190*K190) -> 8.00 | O190: =SUM(M190*N190) -> 0.00
A191: 56.76(h) | B191: (Reflects burden for sanitizer, cleaning compounds, additives, insecticides, etc.) | H191: 30 | I191: 1.0000 | J191: =SUM(H191*I191) -> 30.00 | K191: 1.0000 | L191: =SUM(J191*K191) -> 30.00 | O191: =SUM(M191*N191) -> 0.00
A192: 7 CFR Part 62.200 | B192: QSVP Services: USDA Processed Egg and Egg Products Export Verification Certificate (New collection then merged into 0581-0128) | G192: LPS-234 (CoW 3/20/17 & 3/31/17) | H192: 43 | I192: 15.0000 | J192: =H192*I192 -> 645.00 | K192: 0.2000 | L192: =J192*K192 -> 129.00 | O192: 0.00
A193: 62.202 | B193: Application for Service - (QSVP Services) (Burden reflected under 70.31(b)) | G193: LPS-109 (Previously PY-32 & LS-313; CoW 3/16/15) | J193: =H193*I193 -> 0.00 | L193: =J193*K193 -> 0.00 | O193: 0.00
A194: 62.202 | B194: Review and Submission of Documentation | G194: None | H194: 75 | I194: 1.0000 | J194: =H194*I194 -> 75.00 | K194: 24.0000 | L194: =J194*K194 -> 1,800.00 | O194: =SUM(M194*N194) -> 0.00
A195: 7 CFR Part 70.3 | B195: Request experimentation or alternate procedures | G195: None | H195: 20 | I195: 1.0000 | J195: =SUM(H195*I195) -> 20.00 | K195: 1.0000 | L195: =SUM(J195*K195) -> 20.00 | O195: =SUM(M195*N195) -> 0.00
A196: 70.10 | B196: Application for Specification Approval (Includes applicable burden for 56.4) | G196: None - Removed PY-33 | H196: 6 | I196: 1.5000 | J196: =SUM(H196*I196) -> 9.00 | K196: 2.0000 | L196: =SUM(J196*K196) -> 18.00 | O196: =SUM(M196*N196) -> 0.00
B197: SUBTOTAL | J197: =SUM(J187:J196) -> 1,009.00 | L197: =SUM(L187:L196) -> 2,115.32 | O197: =SUM(O187:O196) -> 0.00
A200: INSTRUCTIONS: Use this form when a single information collection document involves multiple reporting and recordkeeping requirements. The totals of the figures in cols. should be entered in item 13 of OMB-83-1: cols. (D) &/or (I) = 13a (respondent is only counted once); cols. F & I = 13b; cols. H & K = 13c. (F)Total/(D)Total = (E)Average (H)Total/(F)Total = (G)Average (K)Total/(I)Total = (J)Average NOTE: The columns will calculate automatically. If Col. E's response is something other than annually, i.e., 1/6 years, list as "1/6" & decimal will display. | I200: TITLE OF INFORMATION COLLECTION DOCUMENT | N200: OMB NO.
I202: Regulations for Voluntary Grading, Certification, and Standards—7 CFR Parts 54, 56, 62, and 70. | N202: 0581-0128
N205: DATE PREPARED
N207: =$N$11 -> 2017-05-17
A209: IDENTIFICATION OF REPORTING OR RECORDKEEPING REQUIREMENT | H209: ANNUAL BURDEN
H211: REPORTS | M211: RECORDS
O213: TOTAL
G214: FORMS NO (S) | H214: NO. OF | I214: NO OF | J214: TOTAL ANNUAL | K214: HOURS | L214: TOTAL | M214: NO. OF | N214: ANNUAL | O214: RECORD-
A215: SECTION OF | B215: DESCRIPTION | G215: (If "none" | H215: RESPONDENTS | I215: RESPONSES | J215: RESPONSES | K215: PER | L215: HOURS | M215: RECORD- | N215: HOURS PER | O215: KEEPING HOURS
A216: REGS. | G216: so state) | I216: PER | J216: (Col. D x E) | K216: RESPONSE | L216: (Col. F x G) | M216: KEEPERS | N216: RECORD- | O216: (Col. I x J)
I217: RESPONDENT | N217: KEEPER
A218: (A) | B218: (B) | G218: (C) | H218: (D) | I218: (E) | J218: (F) | K218: (G) | L218: (H) | M218: (I) | N218: (J) | O218: (K)
A219: 70.17 | B219: Info provided on product graded on lot-fee basis (Burden reflected under 70.31(a). | G219: None | J219: =SUM(H219*I219) -> 0.00 | L219: =SUM(J219*K219) -> 0.00 | O219: =SUM(M219*N219) -> 0.00
A220: 70.18 | B220: Request grading schedule for continuous resident service. (Burden reflected under 56.18) | G220: LPS-110 (Previously PY-100 & LS-315; CoW 3/16/15) | J220: =SUM(H220*I220) -> 0.00 | L220: =SUM(J220*K220) -> 0.00 | O220: =SUM(M220*N220) -> 0.00
A221: 70.18 | B221: Verbally notify grader in advance of change in the hours of scheduled continuous resident grading service. | G221: None | H221: 10 | I221: 3.0000 | J221: =SUM(H221*I221) -> 30.00 | K221: 0.0800 | L221: =SUM(J221*K221) -> 2.40 | O221: =SUM(M221*N221) -> 0.00
A222: 70.20(a) | B222: State employee's request for grader's license (Burden reflected under 56.10(a)) | G222: LPS-157 | J222: 0.00 | L222: 0.00 | O222: 0.00
A223: 70.21 | B223: State employee appeals suspension of grader's license | G223: None | J223: =SUM(H223*I223) -> 0.00 | K223: 1.0000 | L223: =SUM(J223*K223) -> 0.00 | O223: =SUM(M223*N223) -> 0.00
A224: 70.31(a) | B224: Written request to establish resident grading service on as-needed basis | G224: None | H224: 12 | I224: 1.0000 | J224: =SUM(H224*I224) -> 12.00 | K224: 0.2500 | L224: =SUM(J224*K224) -> 3.00 | O224: =SUM(M224*N224) -> 0.00
A225: 70.31(a) | B225: Verbally request service of a grader to grade product (service on as-needed basis) | G225: None | H225: 103 | I225: 15.0000 | J225: =SUM(H225*I225) -> 1,545.00 | K225: 0.1600 | L225: =SUM(J225*K225) -> 247.20 | O225: =SUM(M225*N225) -> 0.00
A226: 70.31(a) | B226: Written request to cancel resident grading service on as-needed basis | G226: None | H226: 10 | I226: 1.0000 | J226: =SUM(H226*I226) -> 10.00 | K226: 0.2500 | L226: =SUM(J226*K226) -> 2.50 | O226: =SUM(M226*N226) -> 0.00
B227: SUBTOTAL | J227: =SUM(J219:J226) -> 1,597.00 | L227: =SUM(L219:L226) -> 255.10 | O227: =SUM(O219:O226) -> 0.00
A231: INSTRUCTIONS: Use this form when a single information collection document involves multiple reporting and recordkeeping requirements. The totals of the figures in cols. should be entered in item 13 of OMB-83-1: cols. (D) &/or (I) = 13a (respondent is only counted once); cols. F & I = 13b; cols. H & K = 13c. (F)Total/(D)Total = (E)Average (H)Total/(F)Total = (G)Average (K)Total/(I)Total = (J)Average NOTE: The columns will calculate automatically. If Col. E's response is something other than annually, i.e., 1/6 years, list as "1/6" & decimal will display. | I231: TITLE OF INFORMATION COLLECTION DOCUMENT | N231: OMB NO.
I233: Regulations for Voluntary Grading, Certification, and Standards—7 CFR Parts 54, 56, 62, and 70. | N233: 0581-0128
N236: DATE PREPARED
N238: =$N$11 -> 2017-05-17
A240: IDENTIFICATION OF REPORTING OR RECORDKEEPING REQUIREMENT | H240: ANNUAL BURDEN
H242: REPORTS | M242: RECORDS
O244: TOTAL
G245: FORMS NO (S) | H245: NO. OF | I245: NO OF | J245: TOTAL ANNUAL | K245: HOURS | L245: TOTAL | M245: NO. OF | N245: ANNUAL | O245: RECORD-
A246: SECTION OF | B246: DESCRIPTION | G246: (If "none" | H246: RESPONDENTS | I246: RESPONSES | J246: RESPONSES | K246: PER | L246: HOURS | M246: RECORD- | N246: HOURS PER | O246: KEEPING HOURS
A247: REGS. | G247: so state) | I247: PER | J247: (Col. D x E) | K247: RESPONSE | L247: (Col. F x G) | M247: KEEPERS | N247: RECORD- | O247: (Col. I x J)
I248: RESPONDENT | N248: KEEPER
A249: (A) | B249: (B) | G249: (C) | H249: (D) | I249: (E) | J249: (F) | K249: (G) | L249: (H) | M249: (I) | N249: (J) | O249: (K)
A250: 70.31(a) | B250: Request service on lot-fee basis - may be oral or in writing (Incl applicable burden for 70.17 & 70.92. Most all requests are telephone or direct verbal requests.) | G250: None | H250: 103 | I250: 32.0000 | J250: =SUM(H250*I250) -> 3,296.00 | K250: 0.1600 | L250: =SUM(J250*K250) -> 527.36 | O250: =SUM(M250*N250) -> 0.00
A251: 70.31(b) | B251: Application for Service (continuous resident grading service) (Incl burden under 70.38(d) & 70.77(a)(1) and applicable burden for 62.202, 54.61 and 56.21(b) and (c) & 56.52(a)(1)) | G251: LPS-109 (Previously PY-32 & LS-313; CoW 3/16/15) | H251: 118 | I251: 1.0000 | J251: =SUM(H251*I251) -> 118.00 | K251: 0.2500 | L251: =SUM(J251*K251) -> 29.50 | O251: =SUM(M251*N251) -> 0.00
A252: 70.33 | B252: Proof of applicant's authority | G252: None | H252: 1 | I252: 1.0000 | J252: =SUM(H252*I252) -> 1.00 | K252: 0.5000 | L252: =SUM(J252*K252) -> 0.50 | O252: =SUM(M252*N252) -> 0.00
A253: 70.34 | B253: Plant survey for approval of application for resident service (Survey verbally discussed with plant mangement. Explained in A.2 of supporting statement) | G253: None | H253: 15 | I253: 1.0000 | J253: 15.00 | K253: 0.5000 | L253: 7.50 | O253: 0.00
A254: 70.35 | B254: Submit petition for reconsideration of rejected application for resident service | G254: None | H254: 1 | I254: 1.0000 | J254: 1.00 | K254: 2.0000 | L254: 2.00 | O254: 0.00
A255: 70.36 | B255: Withdraw application for continuous resident service | G255: None | H255: 1 | I255: 1.0000 | J255: =SUM(H255*I255) -> 1.00 | K255: 0.3300 | L255: =SUM(J255*K255) -> 0.33 | O255: =SUM(M255*N255) -> 0.00
A256: 70.38(c) | B256: Request hearing on suspension or withdrawal of resident service | G256: None | H256: 1 | I256: 1.0000 | J256: 1.00 | K256: 2.0000 | L256: 2.00 | O256: 0.00
A257: 70.38(d) | B257: Reapply for continuous resident grading service (Burden reflected under 70.31(b)) | G257: LPS-109 (Previously PY-32 & LS-313; CoW 3/16/15) | J257: =SUM(H257*I257) -> 0.00 | L257: =SUM(J257*K257) -> 0.00 | O257: =SUM(M257*N257) -> 0.00
B258: SUBTOTAL | J258: =SUM(J250:J257) -> 3,433.00 | L258: =SUM(L250:L257) -> 569.19 | O258: =SUM(O250:O257) -> 0.00
A262: INSTRUCTIONS: Use this form when a single information collection document involves multiple reporting and recordkeeping requirements. The totals of the figures in cols. should be entered in item 13 of OMB-83-1: cols. (D) &/or (I) = 13a (respondent is only counted once); cols. F & I = 13b; cols. H & K = 13c. (F)Total/(D)Total = (E)Average (H)Total/(F)Total = (G)Average (K)Total/(I)Total = (J)Average NOTE: The columns will calculate automatically. If Col. E's response is something other than annually, i.e., 1/6 years, list as "1/6" & decimal will display. | I262: TITLE OF INFORMATION COLLECTION DOCUMENT | N262: OMB NO.
I264: Regulations for Voluntary Grading, Certification, and Standards—7 CFR Parts 54, 56, 62, and 70. | N264: 0581-0128
N267: DATE PREPARED
N269: =$N$11 -> 2017-05-17
A271: IDENTIFICATION OF REPORTING OR RECORDKEEPING REQUIREMENT | H271: ANNUAL BURDEN
H273: REPORTS | M273: RECORDS
O275: TOTAL
G276: FORMS NO (S) | H276: NO. OF | I276: NO OF | J276: TOTAL ANNUAL | K276: HOURS | L276: TOTAL | M276: NO. OF | N276: ANNUAL | O276: RECORD-
A277: SECTION OF | B277: DESCRIPTION | G277: (If "none" | H277: RESPONDENTS | I277: RESPONSES | J277: RESPONSES | K277: PER | L277: HOURS | M277: RECORD- | N277: HOURS PER | O277: KEEPING HOURS
A278: REGS. | G278: so state) | I278: PER | J278: (Col. D x E) | K278: RESPONSE | L278: (Col. F x G) | M278: KEEPERS | N278: RECORD- | O278: (Col. I x J)
I279: RESPONDENT | N279: KEEPER
A280: (A) | B280: (B) | G280: (C) | H280: (D) | I280: (E) | J280: (F) | K280: (G) | L280: (H) | M280: (I) | N280: (J) | O280: (K)
A281: 70.40 | B281: Request hearing on debarment (Burden reflected under 70.38(c)) | G281: None | J281: =SUM(H281*I281) -> 0.00 | L281: =SUM(J281*K281) -> 0.00 | O281: =SUM(M281*N281) -> 0.00
A282: 70.50 | B282: Submit labeling w/USDA grademark for approval (Labeling required for submission to USDA's FSIS (9 CFR 381). Burden shown reflects portion estimated to be due to LPS requirements in 70.50. Expl'd in A.4 of support statement.) | G282: None | H282: 25 | I282: 34.0000 | J282: =SUM(H282*I282) -> 850.00 | K282: 0.2500 | L282: =SUM(J282*K282) -> 212.50 | O282: =SUM(M282*N282) -> 0.00
A283: 70.61 | B283: Volume of product graded per month in plants with service on as-needed basis. | G283: LPS-240P | H283: 103 | I283: 6.0000 | J283: =SUM(H283*I283) -> 618.00 | K283: 0.7500 | L283: =SUM(J283*K283) -> 463.50 | O283: =SUM(M283*N283) -> 0.00
A284: 70.62 | B284: Grader's report of violations or noncompliance (Burden for all LPS regs reflected under 59.240, OMB 0581-0113) | G284: LPS-518-1 OMB 0581-0113 | J284: =SUM(H284*I284) -> 0.00 | L284: =SUM(J284*K284) -> 0.00 | O284: =SUM(M284*N284) -> 0.00
A285: 70.73 | B285: Request for voluntary lab analyses on fee-for-service basis. (A voluntary srvc only provided for those who wish analyses - not required. No info required to be reported. Burden reflected under 70.91(a) & (c)) | G285: None | J285: =SUM(H285*I285) -> 0.00 | L285: =SUM(J285*K285) -> 0.00 | O285: =SUM(M285*N285) -> 0.00
A286: 70.76(b)(1) | B286: Company designates, in writing, plant employee required and authorized to furnish information to grader | G286: None | H286: 1 | I286: 1.0000 | J286: =SUM(H286*I286) -> 1.00 | K286: 0.2000 | L286: =SUM(J286*K286) -> 0.20 | O286: =SUM(M286*N286) -> 0.00
B287: SUBTOTAL | J287: =SUM(J281:J286) -> 1,469.00 | L287: =SUM(L281:L286) -> 676.20 | O287: =SUM(O281:O286) -> 0.00
A292: INSTRUCTIONS: Use this form when a single information collection document involves multiple reporting and recordkeeping requirements. The totals of the figures in cols. should be entered in item 13 of OMB-83-1: cols. (D) &/or (I) = 13a (respondent is only counted once); cols. F & I = 13b; cols. H & K = 13c. (F)Total/(D)Total = (E)Average (H)Total/(F)Total = (G)Average (K)Total/(I)Total = (J)Average NOTE: The columns will calculate automatically. If Col. E's response is something other than annually, i.e., 1/6 years, list as "1/6" & decimal will display. | I292: TITLE OF INFORMATION COLLECTION DOCUMENT | N292: OMB NO.
I294: Regulations for Voluntary Grading, Certification, and Standards—7 CFR Parts 54, 56, 62, and 70. | N294: 0581-0128
N297: DATE PREPARED
N299: =$N$11 -> 2017-05-17
A301: IDENTIFICATION OF REPORTING OR RECORDKEEPING REQUIREMENT | H301: ANNUAL BURDEN
H303: REPORTS | M303: RECORDS
... 30 more rows
